[Event "Late-Titled-Tuesday-Blitz-June-25-2024"]
[Site "Chess.com"]
[Date "2024.06.25"]
[Round "2"]
[White "andrew-blr"]
[Black "ChristopherYoo"]
[Result "0-1"]
[WhiteElo "2624"]
[BlackElo "3025"]
[TimeControl "180+1"]
[EndTime "14:16:05 PDT"]
[Termination "ChristopherYoo won on time"]

1. d4 {[%clk 0:03:00.9]} 1... Nf6 {[%clk 0:02:58.2]} 2. c4 {[%clk 0:03:00.4]}
2... e6 {[%clk 0:02:57.3]} 3. Nc3 {[%clk 0:02:59.9]} 3... Bb4 {[%clk 0:02:57.1]}
4. a3 {[%clk 0:02:59.9]} 4... Bxc3+ {[%clk 0:02:57]} 5. bxc3 {[%clk 0:03:00.7]}
5... Nc6 {[%clk 0:02:52.6]} 6. f3 {[%clk 0:03:00.9]} 6... b6 {[%clk 0:02:48.7]}
7. e4 {[%clk 0:03:00.4]} 7... Na5 {[%clk 0:02:48.8]} 8. Bd3 {[%clk 0:02:43]}
8... Ba6 {[%clk 0:02:39.3]} 9. Qe2 {[%clk 0:02:42.8]} 9... Nb3 {[%clk
0:02:36.9]} 10. Rb1 {[%clk 0:02:41.6]} 10... Nxc1 {[%clk 0:02:36.8]} 11. Rxc1
{[%clk 0:02:42.3]} 11... d6 {[%clk 0:02:35.4]} 12. f4 {[%clk 0:02:40.7]} 12...
e5 {[%clk 0:02:26.9]} 13. fxe5 {[%clk 0:02:38.6]} 13... dxe5 {[%clk 0:02:26.8]}
14. Nf3 {[%clk 0:02:39.2]} 14... Nd7 {[%clk 0:02:27.4]} 15. O-O {[%clk
0:02:37.6]} 15... O-O {[%clk 0:02:26.7]} 16. c5 {[%clk 0:02:20.5]} 16... Bxd3
{[%clk 0:02:25.8]} 17. Qxd3 {[%clk 0:02:20.5]} 17... Nxc5 {[%clk 0:02:26.3]} 18.
Qe3 {[%clk 0:01:34.9]} 18... Nd7 {[%clk 0:02:25.2]} 19. Nd2 {[%clk 0:01:20]}
19... Qe7 {[%clk 0:02:24]} 20. Rf5 {[%clk 0:01:19.1]} 20... g6 {[%clk
0:02:23.4]} 21. Rf3 {[%clk 0:01:17.8]} 21... Qxa3 {[%clk 0:02:19.5]} 22. Rcf1
{[%clk 0:01:17.4]} 22... exd4 {[%clk 0:02:19.1]} 23. Qh6 {[%clk 0:01:13.3]}
23... f6 {[%clk 0:02:01.6]} 24. cxd4 {[%clk 0:01:10.8]} 24... Qb4 {[%clk
0:02:01.3]} 25. Nb3 {[%clk 0:00:24.3]} 25... Qe7 {[%clk 0:01:41.8]} 26. Qh4
{[%clk 0:00:12.3]} 26... c5 {[%clk 0:01:39.4]} 27. dxc5 {[%clk 0:00:11.4]} 27...
bxc5 {[%clk 0:01:32.2]} 28. Na5 {[%clk 0:00:11.2]} 28... Qe6 {[%clk 0:01:23.3]}
29. Rh3 {[%clk 0:00:09.4]} 29... Rf7 {[%clk 0:01:21.8]} 30. Kh1 {[%clk
0:00:07.5]} 30... Rc8 {[%clk 0:01:19.7]} 31. Rg3 {[%clk 0:00:03.6]} 31... c4
{[%clk 0:01:19.6]} 32. e5 {[%clk 0:00:02.1]} 32... Nxe5 {[%clk 0:01:19.2]} 33.
Qh6 {[%clk 0:00:01.7]} 33... c3 {[%clk 0:01:18.6]} 34. Nb3 {[%clk 0:00:01.2]}
34... Qxb3 {[%clk 0:01:18.1]} 0-1

[Event "Late-Titled-Tuesday-Blitz-June-25-2024"]
[Site "Chess.com"]
[Date "2024.06.25"]
[Round "2"]
[White "protectiago"]
[Black "vanyakuba"]
[Result "0-1"]
[WhiteElo "2128"]
[BlackElo "2466"]
[TimeControl "180+1"]
[EndTime "14:16:05 PDT"]
[Termination "vanyakuba won by resignation"]

1. d4 {[%clk 0:03:00]} 1... Nf6 {[%clk 0:02:59.4]} 2. c4 {[%clk 0:02:59.1]} 2...
Nc6 {[%clk 0:02:58.7]} 3. g3 {[%clk 0:02:56.6]} 3... e5 {[%clk 0:02:57.4]} 4. d5
{[%clk 0:02:56.1]} 4... Ne7 {[%clk 0:02:57.3]} 5. Bg2 {[%clk 0:02:56]} 5... Ng6
{[%clk 0:02:57.4]} 6. e4 {[%clk 0:02:50.2]} 6... Bc5 {[%clk 0:02:56.3]} 7. h3
{[%clk 0:02:41.6]} 7... a5 {[%clk 0:02:54.1]} 8. Ne2 {[%clk 0:02:37.8]} 8... d6
{[%clk 0:02:42.2]} 9. O-O {[%clk 0:02:36.4]} 9... O-O {[%clk 0:02:34.3]} 10.
Nbc3 {[%clk 0:02:34.7]} 10... Bd7 {[%clk 0:02:32.6]} 11. Kh2 {[%clk 0:02:30.2]}
11... a4 {[%clk 0:02:30.4]} 12. f4 {[%clk 0:02:29.3]} 12... exf4 {[%clk
0:02:28.5]} 13. Bxf4 {[%clk 0:02:21.9]} 13... Nxf4 {[%clk 0:02:24.3]} 14. Nxf4
{[%clk 0:02:11.7]} 14... Qe7 {[%clk 0:02:18.2]} 15. Nd3 {[%clk 0:01:20.4]} 15...
Bd4 {[%clk 0:02:16.9]} 16. Qf3 {[%clk 0:01:13.9]} 16... a3 {[%clk 0:02:15.2]}
17. Rae1 {[%clk 0:01:05.3]} 17... axb2 {[%clk 0:02:13.6]} 18. Nxb2 {[%clk
0:01:05.2]} 18... Ra3 {[%clk 0:02:00]} 19. Nbd1 {[%clk 0:01:02.6]} 19... Qe5
{[%clk 0:01:57.1]} 20. Re3 {[%clk 0:00:36.7]} 20... Bxe3 {[%clk 0:01:49.9]} 21.
Qxe3 {[%clk 0:00:37.6]} 21... Bg4 {[%clk 0:01:42.5]} 22. Qc1 {[%clk 0:00:36.9]}
22... Rfa8 {[%clk 0:01:29.8]} 23. Nb5 {[%clk 0:00:19.8]} 23... Qxg3+ {[%clk
0:01:27]} 24. Kg1 {[%clk 0:00:18.3]} 24... Bxh3 {[%clk 0:01:26.8]} 25. Rf2
{[%clk 0:00:15.9]} 25... Rxa2 {[%clk 0:01:19.2]} 26. Qe3 {[%clk 0:00:11.2]}
26... Qxe3 {[%clk 0:01:11]} 27. Nxe3 {[%clk 0:00:11]} 27... Rxf2 {[%clk
0:01:09]} 28. Kxf2 {[%clk 0:00:10.5]} 28... Ra2+ {[%clk 0:01:09.4]} 29. Kg3
{[%clk 0:00:10.8]} 29... Bxg2 {[%clk 0:01:09.3]} 30. Nxg2 {[%clk 0:00:10.2]}
30... Nxe4+ {[%clk 0:01:09.3]} 31. Kf3 {[%clk 0:00:10.8]} 31... Nd2+ {[%clk
0:01:07.3]} 32. Kg3 {[%clk 0:00:10.2]} 32... Nxc4 {[%clk 0:01:07.9]} 33. Nxc7
{[%clk 0:00:10.5]} 0-1

[Event "Late-Titled-Tuesday-Blitz-June-25-2024"]
[Site "Chess.com"]
[Date "2024.06.25"]
[Round "2"]
[White "chesspingvin1995"]
[Black "AldokhinIvan"]
[Result "0-1"]
[WhiteElo "2210"]
[BlackElo "2659"]
[TimeControl "180+1"]
[EndTime "14:16:08 PDT"]
[Termination "AldokhinIvan won by resignation"]

1. e4 {[%clk 0:02:55.5]} 1... c5 {[%clk 0:02:52.5]} 2. Nf3 {[%clk 0:02:55.4]}
2... e6 {[%clk 0:02:53]} 3. d4 {[%clk 0:02:55.5]} 3... cxd4 {[%clk 0:02:53.9]}
4. Nxd4 {[%clk 0:02:56.2]} 4... a6 {[%clk 0:02:54.6]} 5. Nc3 {[%clk 0:02:55.3]}
5... Qc7 {[%clk 0:02:55.2]} 6. Bd3 {[%clk 0:02:48.9]} 6... Nf6 {[%clk
0:02:55.6]} 7. O-O {[%clk 0:02:48.6]} 7... d6 {[%clk 0:02:56.2]} 8. Be3 {[%clk
0:02:47.5]} 8... b5 {[%clk 0:02:55.9]} 9. a3 {[%clk 0:02:47.2]} 9... Bb7 {[%clk
0:02:56.4]} 10. f3 {[%clk 0:02:47.1]} 10... Nbd7 {[%clk 0:02:57]} 11. Qd2 {[%clk
0:02:44.1]} 11... Be7 {[%clk 0:02:57]} 12. Rad1 {[%clk 0:02:42.2]} 12... Ne5
{[%clk 0:02:51.8]} 13. Be2 {[%clk 0:02:23.4]} 13... O-O {[%clk 0:02:50.4]} 14.
Kh1 {[%clk 0:02:09.3]} 14... Rfd8 {[%clk 0:02:43.3]} 15. Bf4 {[%clk 0:02:09.4]}
15... Ng6 {[%clk 0:02:34.6]} 16. Bg3 {[%clk 0:02:09.1]} 16... Nh5 {[%clk
0:02:34.8]} 17. Bf2 {[%clk 0:02:01.5]} 17... Nhf4 {[%clk 0:02:28.3]} 18. g3
{[%clk 0:01:46.9]} 18... Nxe2 {[%clk 0:02:25.9]} 19. Qxe2 {[%clk 0:01:47.5]}
19... Rac8 {[%clk 0:02:23.4]} 20. h4 {[%clk 0:01:41.9]} 20... Ne5 {[%clk
0:02:20.3]} 21. Kg2 {[%clk 0:01:39.5]} 21... Nc4 {[%clk 0:02:14.1]} 22. b3
{[%clk 0:01:04.6]} 22... Nxa3 {[%clk 0:02:13]} 23. Na2 {[%clk 0:01:03.9]} 23...
Nxc2 {[%clk 0:01:46]} 24. Rc1 {[%clk 0:00:55.5]} 24... Nxd4 {[%clk 0:01:45.9]}
25. Rxc7 {[%clk 0:00:56.1]} 25... Nxe2 {[%clk 0:01:45.4]} 26. Rxe7 {[%clk
0:00:47.4]} 26... Ba8 {[%clk 0:01:42.7]} 27. Ra7 {[%clk 0:00:36.5]} 27... d5
{[%clk 0:01:42.6]} 28. exd5 {[%clk 0:00:28.4]} 28... Rxd5 {[%clk 0:01:42]} 29.
Nb4 {[%clk 0:00:23.5]} 29... Rf5 {[%clk 0:01:33.7]} 30. Be3 {[%clk 0:00:23.4]}
30... Nc3 {[%clk 0:01:20.9]} 31. Rxa6 {[%clk 0:00:20.4]} 31... h5 {[%clk
0:01:10.7]} 32. Rfa1 {[%clk 0:00:19.6]} 32... Bxf3+ {[%clk 0:01:07.6]} 33. Kh2
{[%clk 0:00:11.7]} 33... Nd5 {[%clk 0:01:08.1]} 34. Nxd5 {[%clk 0:00:11.3]}
34... Rc2+ {[%clk 0:01:08]} 0-1

[Event "Late-Titled-Tuesday-Blitz-June-25-2024"]
[Site "Chess.com"]
[Date "2024.06.25"]
[Round "2"]
[White "TheDevilAdvisoR"]
[Black "Greguer"]
[Result "0-1"]
[WhiteElo "2504"]
[BlackElo "2325"]
[TimeControl "180+1"]
[EndTime "14:16:09 PDT"]
[Termination "Greguer won by resignation"]

1. f4 {[%clk 0:02:59.4]} 1... e5 {[%clk 0:02:53]} 2. fxe5 {[%clk 0:02:59]} 2...
d6 {[%clk 0:02:51.8]} 3. exd6 {[%clk 0:02:59.9]} 3... Bxd6 {[%clk 0:02:52.4]} 4.
Nf3 {[%clk 0:03:00.1]} 4... g5 {[%clk 0:02:52.7]} 5. g3 {[%clk 0:02:59.5]} 5...
h5 {[%clk 0:02:51.9]} 6. d4 {[%clk 0:02:53.2]} 6... h4 {[%clk 0:02:52.3]} 7.
Bxg5 {[%clk 0:02:45.9]} 7... f6 {[%clk 0:02:51.2]} 8. Bxh4 {[%clk 0:02:41.4]}
8... Bg4 {[%clk 0:02:51.8]} 9. Nbd2 {[%clk 0:02:37.3]} 9... Nc6 {[%clk 0:02:48]}
10. c3 {[%clk 0:02:35]} 10... Qe7 {[%clk 0:02:47.8]} 11. Qa4 {[%clk 0:02:13.4]}
11... O-O-O {[%clk 0:02:42.3]} 12. d5 {[%clk 0:01:52]} 12... Bxf3 {[%clk
0:02:39.5]} 13. Nxf3 {[%clk 0:01:51.7]} 13... Ne5 {[%clk 0:02:40.1]} 14. Bh3+
{[%clk 0:01:34.1]} 14... Kb8 {[%clk 0:02:38.9]} 15. Be6 {[%clk 0:01:33.7]} 15...
Nh6 {[%clk 0:02:37.9]} 16. Nxe5 {[%clk 0:01:16.4]} 16... Bxe5 {[%clk 0:02:36.1]}
17. O-O-O {[%clk 0:01:10.4]} 17... Nf7 {[%clk 0:02:11.9]} 18. Rhf1 {[%clk
0:01:01.5]} 18... Ng5 {[%clk 0:02:00.1]} 19. Bf5 {[%clk 0:00:50.1]} 19... Rd6
{[%clk 0:01:52.8]} 20. e4 {[%clk 0:00:48.1]} 20... Rhd8 {[%clk 0:01:47.8]} 21.
Bxg5 {[%clk 0:00:31.5]} 21... fxg5 {[%clk 0:01:47.4]} 22. Be6 {[%clk 0:00:30.1]}
22... Qh7 {[%clk 0:01:42.5]} 23. Rd2 {[%clk 0:00:27.7]} 23... Qh8 {[%clk
0:01:36.5]} 24. Qc2 {[%clk 0:00:25.8]} 24... a6 {[%clk 0:01:29.3]} 25. Rdf2
{[%clk 0:00:25.1]} 25... Qe8 {[%clk 0:01:08.4]} 26. c4 {[%clk 0:00:19]} 26...
Rb6 {[%clk 0:01:06.6]} 27. c5 {[%clk 0:00:18.5]} 27... Rxb2 {[%clk 0:01:06]} 28.
Qxb2 {[%clk 0:00:15.8]} 28... Bxb2+ {[%clk 0:01:06.9]} 29. Rxb2 {[%clk
0:00:15.9]} 29... Qa4 {[%clk 0:01:04.5]} 30. Bf5 {[%clk 0:00:07.6]} 30... Qc4+
{[%clk 0:01:03.9]} 31. Kd2 {[%clk 0:00:07.3]} 31... Qxf1 {[%clk 0:01:03.9]} 0-1

[Event "Late-Titled-Tuesday-Blitz-June-25-2024"]
[Site "Chess.com"]
[Date "2024.06.25"]
[Round "2"]
[White "JEHUBNER"]
[Black "Laico"]
[Result "0-1"]
[WhiteElo "1973"]
[BlackElo "2438"]
[TimeControl "180+1"]
[EndTime "14:16:09 PDT"]
[Termination "Laico won by resignation"]

1. e4 {[%clk 0:03:00.9]} 1... e6 {[%clk 0:02:51.4]} 2. d4 {[%clk 0:03:00.7]}
2... d5 {[%clk 0:02:47.1]} 3. exd5 {[%clk 0:03:01.6]} 3... exd5 {[%clk
0:02:40.6]} 4. Nf3 {[%clk 0:03:02.5]} 4... Nc6 {[%clk 0:02:39.7]} 5. Bd3 {[%clk
0:03:02.9]} 5... Bg4 {[%clk 0:02:40.1]} 6. c3 {[%clk 0:03:01.9]} 6... Bd6 {[%clk
0:02:39.2]} 7. O-O {[%clk 0:03:01.7]} 7... Qd7 {[%clk 0:02:38.2]} 8. Re1+ {[%clk
0:02:53.5]} 8... Nge7 {[%clk 0:02:38.2]} 9. Bg5 {[%clk 0:02:52.6]} 9... f6
{[%clk 0:02:38.1]} 10. Bh4 {[%clk 0:02:50.6]} 10... g5 {[%clk 0:02:35.2]} 11.
Bg3 {[%clk 0:02:50.1]} 11... O-O-O {[%clk 0:02:34.4]} 12. b4 {[%clk 0:02:48.5]}
12... h5 {[%clk 0:02:33.4]} 13. b5 {[%clk 0:02:45.2]} 13... Na5 {[%clk
0:02:33.3]} 14. Qa4 {[%clk 0:02:36.1]} 14... b6 {[%clk 0:02:32.3]} 15. Nbd2
{[%clk 0:02:35.4]} 15... Kb8 {[%clk 0:02:31.2]} 16. c4 {[%clk 0:02:35.1]} 16...
Bxg3 {[%clk 0:02:18.6]} 17. hxg3 {[%clk 0:02:32.6]} 17... dxc4 {[%clk
0:02:18.8]} 18. Nxc4 {[%clk 0:02:31.5]} 18... Nxc4 {[%clk 0:02:18.6]} 19. Bxc4
{[%clk 0:02:24.5]} 19... h4 {[%clk 0:02:15.3]} 20. Be2 {[%clk 0:01:44.2]} 20...
hxg3 {[%clk 0:02:13.8]} 21. fxg3 {[%clk 0:01:40.3]} 21... Nd5 {[%clk 0:02:11.6]}
22. Rac1 {[%clk 0:01:29.8]} 22... Rde8 {[%clk 0:01:30.3]} 23. Kf2 {[%clk
0:01:06]} 23... Ne3 {[%clk 0:01:17.5]} 24. Rc6 {[%clk 0:00:52.7]} 24... Bf5
{[%clk 0:00:49]} 25. Rec1 {[%clk 0:00:46.7]} 25... Ng4+ {[%clk 0:00:44]} 26. Kf1
{[%clk 0:00:40.4]} 26... Rh1+ {[%clk 0:00:40.5]} 27. Ng1 {[%clk 0:00:38.4]}
27... Qe7 {[%clk 0:00:35]} 28. Qc4 {[%clk 0:00:30.2]} 28... Nh2+ {[%clk
0:00:34.3]} 29. Kf2 {[%clk 0:00:29.2]} 29... Qe3+ {[%clk 0:00:33.7]} 0-1

[Event "Late-Titled-Tuesday-Blitz-June-25-2024"]
[Site "Chess.com"]
[Date "2024.06.25"]
[Round "2"]
[White "Hikaru"]
[Black "Mikhail_Golubev"]
[Result "1-0"]
[WhiteElo "3227"]
[BlackElo "2654"]
[TimeControl "180+1"]
[EndTime "14:16:13 PDT"]
[Termination "Hikaru won on time"]

1. d4 {[%clk 0:03:00.9]} 1... Nf6 {[%clk 0:02:59.5]} 2. Bg5 {[%clk 0:03:00.5]}
2... Ne4 {[%clk 0:02:57.9]} 3. Bf4 {[%clk 0:02:58.4]} 3... c5 {[%clk 0:02:57.1]}
4. f3 {[%clk 0:02:58.4]} 4... Qa5+ {[%clk 0:02:55.4]} 5. c3 {[%clk 0:02:58.5]}
5... Nf6 {[%clk 0:02:54]} 6. d5 {[%clk 0:02:58.9]} 6... Qb6 {[%clk 0:02:54.1]}
7. Bc1 {[%clk 0:02:58.4]} 7... e6 {[%clk 0:02:50.8]} 8. e4 {[%clk 0:02:58.7]}
8... exd5 {[%clk 0:02:50.3]} 9. e5 {[%clk 0:02:58.9]} 9... Qe6 {[%clk
0:02:38.7]} 10. Qe2 {[%clk 0:02:58.7]} 10... Ng8 {[%clk 0:02:36.2]} 11. Na3
{[%clk 0:02:58.9]} 11... Nc6 {[%clk 0:02:25.5]} 12. Bf4 {[%clk 0:02:54.9]} 12...
f6 {[%clk 0:02:03]} 13. Nb5 {[%clk 0:02:48]} 13... Kd8 {[%clk 0:02:03]} 14. exf6
{[%clk 0:02:48.2]} 14... Qxe2+ {[%clk 0:01:54.8]} 15. Nxe2 {[%clk 0:02:39.1]}
15... Nxf6 {[%clk 0:01:55.3]} 16. O-O-O {[%clk 0:02:39.7]} 16... a6 {[%clk
0:01:30.4]} 17. Bc7+ {[%clk 0:02:21.8]} 17... Ke8 {[%clk 0:01:26.5]} 18. Nd6+
{[%clk 0:02:22]} 18... Bxd6 {[%clk 0:01:08.1]} 19. Bxd6 {[%clk 0:02:22.9]} 19...
b6 {[%clk 0:01:06.1]} 20. Bc7 {[%clk 0:02:23.2]} 20... b5 {[%clk 0:00:54.5]} 21.
Bd6 {[%clk 0:02:23.2]} 21... c4 {[%clk 0:00:43]} 22. Nf4 {[%clk 0:02:14.4]}
22... d4 {[%clk 0:00:40.9]} 23. cxd4 {[%clk 0:02:15.3]} 23... Kf7 {[%clk
0:00:39.5]} 24. d5 {[%clk 0:02:12.3]} 24... Ne7 {[%clk 0:00:38.8]} 25. g3 {[%clk
0:01:59.9]} 25... Bb7 {[%clk 0:00:34.5]} 26. Bh3 {[%clk 0:01:55.4]} 26... Nexd5
{[%clk 0:00:28.5]} 27. Rd4 {[%clk 0:01:49.1]} 27... Bc6 {[%clk 0:00:21.8]} 28.
g4 {[%clk 0:01:41.7]} 28... h6 {[%clk 0:00:17.3]} 29. Rhd1 {[%clk 0:01:39.3]}
29... Nxf4 {[%clk 0:00:15]} 30. Rxf4 {[%clk 0:01:40.2]} 30... Rhe8 {[%clk
0:00:14.3]} 31. Bc5 {[%clk 0:01:38.2]} 31... Re6 {[%clk 0:00:12.3]} 32. g5
{[%clk 0:01:37.3]} 32... hxg5 {[%clk 0:00:12.5]} 33. Bxe6+ {[%clk 0:01:38]}
33... Kxe6 {[%clk 0:00:12.3]} 34. Rd6+ {[%clk 0:01:33.6]} 34... Kf7 {[%clk
0:00:07.3]} 35. Rf5 {[%clk 0:01:34]} 35... Rh8 {[%clk 0:00:05.4]} 36. Bd4 {[%clk
0:01:32.2]} 36... Ke7 {[%clk 0:00:02.1]} 37. Bc5 {[%clk 0:01:28.4]} 37... Kf7
{[%clk 0:00:01.8]} 38. Rxg5 {[%clk 0:01:29.1]} 38... Rxh2 {[%clk 0:00:01.3]} 39.
Bd4 {[%clk 0:01:29.1]} 39... Rh1+ {[%clk 0:00:01.5]} 40. Kc2 {[%clk 0:01:28.5]}
40... Ke7 {[%clk 0:00:01.8]} 41. Be5 {[%clk 0:01:28.1]} 41... Ne8 {[%clk
0:00:01.9]} 42. Rd2 {[%clk 0:01:28.6]} 42... Rf1 {[%clk 0:00:01.7]} 43. Bxg7
{[%clk 0:01:26.3]} 43... Rxf3 {[%clk 0:00:01]} 44. Re2+ {[%clk 0:01:24.7]} 1-0

[Event "Late-Titled-Tuesday-Blitz-June-25-2024"]
[Site "Chess.com"]
[Date "2024.06.25"]
[Round "2"]
[White "Msb2"]
[Black "GMChessrob"]
[Result "1-0"]
[WhiteElo "3083"]
[BlackElo "2634"]
[TimeControl "180+1"]
[EndTime "14:16:16 PDT"]
[Termination "Msb2 won by resignation"]

1. d4 {[%clk 0:03:00.9]} 1... d5 {[%clk 0:03:00]} 2. c4 {[%clk 0:03:00.9]} 2...
e6 {[%clk 0:03:00.7]} 3. Nc3 {[%clk 0:03:00.9]} 3... Be7 {[%clk 0:03:01.4]} 4.
cxd5 {[%clk 0:03:01.1]} 4... exd5 {[%clk 0:03:02.3]} 5. Bf4 {[%clk 0:03:01.6]}
5... c6 {[%clk 0:03:02.9]} 6. e3 {[%clk 0:03:01.9]} 6... Bf5 {[%clk 0:03:03.6]}
7. f3 {[%clk 0:03:02.4]} 7... Nd7 {[%clk 0:02:57.8]} 8. e4 {[%clk 0:03:02.4]}
8... dxe4 {[%clk 0:02:57.4]} 9. fxe4 {[%clk 0:03:03.3]} 9... Bg6 {[%clk
0:02:58.3]} 10. Bd3 {[%clk 0:03:03.8]} 10... Ngf6 {[%clk 0:02:53]} 11. Nge2
{[%clk 0:03:04.1]} 11... c5 {[%clk 0:02:45.7]} 12. d5 {[%clk 0:03:03.5]} 12...
Ng4 {[%clk 0:02:44.1]} 13. O-O {[%clk 0:03:00]} 13... Nge5 {[%clk 0:02:40.6]}
14. Bxe5 {[%clk 0:02:34.8]} 14... Nxe5 {[%clk 0:02:40.1]} 15. Bb5+ {[%clk
0:02:35.5]} 15... Kf8 {[%clk 0:02:40.4]} 16. Nf4 {[%clk 0:02:33.4]} 16... Kg8
{[%clk 0:02:31.9]} 17. Kh1 {[%clk 0:02:30.6]} 17... Bd6 {[%clk 0:02:30]} 18. Be2
{[%clk 0:02:26.6]} 18... a6 {[%clk 0:02:29]} 19. a4 {[%clk 0:02:26.6]} 19... b6
{[%clk 0:02:27.8]} 20. Qd2 {[%clk 0:02:26.1]} 20... Qe7 {[%clk 0:02:24.2]} 21.
Rae1 {[%clk 0:02:25.7]} 21... h6 {[%clk 0:02:20]} 22. Bh5 {[%clk 0:02:22.2]}
22... Bxh5 {[%clk 0:02:16.2]} 23. Nxh5 {[%clk 0:02:23.1]} 23... Kh7 {[%clk
0:02:15.7]} 24. Qf4 {[%clk 0:02:14.9]} 24... Raf8 {[%clk 0:02:05.4]} 25. Qf5+
{[%clk 0:02:04]} 25... g6 {[%clk 0:02:04.8]} 26. Nf6+ {[%clk 0:02:04.5]} 26...
Kg7 {[%clk 0:01:59]} 27. Qh3 {[%clk 0:02:05.1]} 27... h5 {[%clk 0:01:44.3]} 28.
g3 {[%clk 0:01:56.7]} 28... Ng4 {[%clk 0:01:41.3]} 29. Nxg4 {[%clk 0:01:51.1]}
29... hxg4 {[%clk 0:01:42.2]} 30. Qxg4 {[%clk 0:01:52]} 30... Be5 {[%clk
0:01:41.2]} 31. Kg2 {[%clk 0:01:51.3]} 31... b5 {[%clk 0:01:39.2]} 32. axb5
{[%clk 0:01:51.4]} 32... axb5 {[%clk 0:01:40.1]} 33. Nd1 {[%clk 0:01:48.3]}
33... Rh5 {[%clk 0:01:32.2]} 34. Ne3 {[%clk 0:01:45.7]} 34... Kh6 {[%clk
0:01:27.1]} 35. Re2 {[%clk 0:01:34.9]} 35... c4 {[%clk 0:01:27.2]} 36. Ref2
{[%clk 0:01:33.4]} 36... Qg5 {[%clk 0:01:14.9]} 37. Qxg5+ {[%clk 0:01:26.8]}
37... Rxg5 {[%clk 0:01:10.6]} 38. Rxf7 {[%clk 0:01:26.5]} 38... Rxf7 {[%clk
0:01:11.5]} 39. Rxf7 {[%clk 0:01:27]} 39... Bxb2 {[%clk 0:01:12]} 40. d6 {[%clk
0:01:27.6]} 40... Be5 {[%clk 0:00:53.4]} 41. d7 {[%clk 0:01:24.4]} 41... Bc7
{[%clk 0:00:54]} 42. e5 {[%clk 0:01:04.7]} 42... c3 {[%clk 0:00:45.2]} 43. h4
{[%clk 0:01:03.8]} 43... Rf5 {[%clk 0:00:35.3]} 44. Nxf5+ {[%clk 0:00:53.9]}
44... gxf5 {[%clk 0:00:36.2]} 45. Rf6+ {[%clk 0:00:54.6]} 45... Kg7 {[%clk
0:00:34.1]} 46. Rc6 {[%clk 0:00:55.5]} 1-0

[Event "Late-Titled-Tuesday-Blitz-June-25-2024"]
[Site "Chess.com"]
[Date "2024.06.25"]
[Round "2"]
[White "legendisback1"]
[Black "Bykov_Egor"]
[Result "1-0"]
[WhiteElo "3011"]
[BlackElo "2615"]
[TimeControl "180+1"]
[EndTime "14:16:16 PDT"]
[Termination "legendisback1 won by resignation"]

1. d4 {[%clk 0:03:00.9]} 1... Nf6 {[%clk 0:03:00]} 2. Nc3 {[%clk 0:03:00.2]}
2... d5 {[%clk 0:02:59.6]} 3. Bf4 {[%clk 0:03:00.6]} 3... c5 {[%clk 0:02:58.4]}
4. e4 {[%clk 0:03:00.2]} 4... cxd4 {[%clk 0:02:45.1]} 5. Qxd4 {[%clk 0:02:59]}
5... Nc6 {[%clk 0:02:45.2]} 6. Bb5 {[%clk 0:02:59.4]} 6... Bd7 {[%clk 0:02:29]}
7. Bxc6 {[%clk 0:02:59.2]} 7... Bxc6 {[%clk 0:02:26.8]} 8. e5 {[%clk 0:02:59.5]}
8... Ne4 {[%clk 0:02:26.2]} 9. e6 {[%clk 0:02:40.2]} 9... Nxc3 {[%clk
0:02:10.9]} 10. exf7+ {[%clk 0:02:36.1]} 10... Kxf7 {[%clk 0:02:11.8]} 11. bxc3
{[%clk 0:02:36.8]} 11... Qb6 {[%clk 0:02:02.6]} 12. Qd3 {[%clk 0:02:35.8]} 12...
e5 {[%clk 0:01:51.9]} 13. Qf5+ {[%clk 0:02:32.6]} 13... Ke8 {[%clk 0:01:47.8]}
14. Qxe5+ {[%clk 0:02:31.3]} 14... Be7 {[%clk 0:01:47]} 15. Bg5 {[%clk
0:02:23.1]} 15... Qc5 {[%clk 0:01:43.7]} 16. Qxg7 {[%clk 0:02:15.1]} 16... Kd7
{[%clk 0:01:35.8]} 17. Qxe7+ {[%clk 0:02:14.1]} 17... Qxe7+ {[%clk 0:01:36.7]}
18. Bxe7 {[%clk 0:02:14.8]} 18... Kxe7 {[%clk 0:01:37.6]} 19. f3 {[%clk
0:01:39.7]} 19... Rhg8 {[%clk 0:01:29.1]} 20. Kf2 {[%clk 0:01:38.7]} 20... Ba4
{[%clk 0:01:28.1]} 21. Rd1 {[%clk 0:01:27.1]} 21... Rg5 {[%clk 0:01:08.1]} 22.
Rd2 {[%clk 0:01:25.3]} 22... Bb5 {[%clk 0:01:01.2]} 23. Ne2 {[%clk 0:01:23.1]}
23... Rc8 {[%clk 0:00:59.3]} 24. Nf4 {[%clk 0:01:21.3]} 24... Bc4 {[%clk
0:00:56.9]} 25. Re1+ {[%clk 0:01:13.7]} 25... Kd6 {[%clk 0:00:57.1]} 26. Re6+
{[%clk 0:01:12.6]} 26... Kc5 {[%clk 0:00:49]} 27. Rh6 {[%clk 0:00:57]} 27... d4
{[%clk 0:00:34.6]} 28. Rxd4 {[%clk 0:00:47.1]} 28... Kb5 {[%clk 0:00:33.2]} 29.
Rxh7 {[%clk 0:00:43.1]} 29... Bxa2 {[%clk 0:00:31.1]} 30. Rxb7+ {[%clk
0:00:42.4]} 30... Ka6 {[%clk 0:00:29.9]} 31. Rb2 {[%clk 0:00:40.5]} 31... Bf7
{[%clk 0:00:29.3]} 32. Ra4+ {[%clk 0:00:39.1]} 32... Ra5 {[%clk 0:00:29.1]} 33.
Rxa5+ {[%clk 0:00:40]} 33... Kxa5 {[%clk 0:00:30]} 34. Rb7 {[%clk 0:00:40.9]}
1-0